bitfinex/quotes_ETHUSD_20250813
["timestamp","ask_amount","ask_price","bid_price","bid_amount"]
[1755066900217,2.06357018,4626.2,4626.1,8.535]
[1755066900409,18.21016964,4626.2,4626.1,8.535]
[1755066901997,0.108,4626.2,4626.1,8.9629]
[1755066902199,0.108,4626.2,4626.1,9.4517]
[1755066902385,0.108,4626.2,4626.1,5.181]
[1755066902592,17.87880356,4626.2,4626.1,5.181]
[1755066902819,17.71329946,4626.2,4626.1,8.815]
[1755066903021,16.80459946,4626.2,4626.1,8.815]
[1755066903526,17.71329946,4626.2,4626.1,8.815]
[1755066904089,17.71329946,4626.2,4626.1,5.461]
[1755066904290,17.71329946,4626.2,4626.1,8.815]
[1755066905207,17.87313617,4626.2,4626.1,8.815]
[1755066905594,18.1753572,4626.2,4626.1,8.815]
[1755066906023,17.87313617,4626.2,4626.1,8.535]
[1755066906613,17.87313617,4626.2,4626.1,8.536]
[1755066908735,17.87313617,4626.2,4626.1,8.535]
[1755066909246,25.04313617,4626.2,4626.1,8.535]
[1755066911412,0.55,4626.1,4626.0,5.682]
[1755066911659,8.6287,4626.1,4625.8,5.182]
[1755066911961,0.55,4625.8,4625.6,0.001]
[1755066912258,0.658,4625.7,4625.6,0.001]
[1755066912436,0.55,4625.6,4623.9,0.4898]
[1755066912616,0.55,4624.5,4624.4,3.353]
[1755066913215,1.5667,4624.5,4624.4,3.353]
[1755066915465,1.5667,4624.5,4624.4,8.536]
[1755066916333,1.86892103,4624.5,4623.9,5.183]
[1755066916532,0.55,4623.9,4623.4,0.001]
[1755066916732,16.80459946,4623.5,4623.4,0.001]
[1755066917237,17.71329946,4623.5,4623.4,0.001]
[1755066917556,17.71329946,4623.5,4623.4,3.354]
[1755066918138,16.80459946,4623.5,4623.4,3.354]
[1755066918754,16.80459946,4623.5,4623.4,0.001]
[1755066918964,17.71329946,4623.5,4623.4,3.354]
[1755066919161,17.71329946,4623.5,4623.4,0.001]
[1755066919362,17.71329946,4623.5,4623.4,3.354]
[1755066921053,0.658,4623.5,4623.4,3.354]
[1755066921247,16.80459946,4623.5,4623.4,3.354]
[1755066922381,17.26516843,4623.5,4623.4,3.354]
[1755066922954,17.43104461,4623.5,4623.4,3.354]
[1755066925382,17.43104461,4623.5,4623.4,8.539]
[1755066927474,0.73444515,4623.5,4623.4,8.539]
[1755066927679,0.16587618,4623.5,4623.4,8.539]
[1755066927866,0.46056897,4623.8,4623.4,8.539]
[1755066928278,0.658,4623.5,4623.4,8.539]
[1755066928504,0.658,4623.5,4623.4,8.538]
[1755066928712,1.7335569,4623.5,4623.4,8.538]
[1755066929609,1.89486412,4623.5,4623.4,8.538]
[1755066930391,2.09471015,4623.5,4623.4,8.538]
[1755066930590,2.55527912,4623.5,4623.4,8.538]
[1755066930904,2.09469916,4623.5,4623.4,8.538]
[1755066931085,2.55526813,4623.5,4623.4,8.538]
[1755066931283,2.09469916,4623.5,4623.4,8.538]
[1755066931516,2.55526813,4623.5,4623.4,8.538]
[1755066932500,2.22506217,4623.5,4623.4,8.538]
[1755066932704,2.22511689,4623.5,4623.4,8.538]
[1755066934604,1.64662285,4623.5,4623.4,8.538]
[1755066935622,2.22328735,4623.5,4623.4,9.0004]
[1755066935835,1.09662285,4623.5,4623.4,9.4669]
[1755066936028,1.09662285,4623.5,4623.4,5.186]
[1755066936232,1.64662285,4623.5,4623.4,5.186]
[1755066936541,3.61979585,4623.5,4623.4,8.537]
[1755066936898,3.31757482,4623.5,4623.4,8.537]
[1755066937097,2.55082285,4623.5,4623.4,8.537]
[1755066937298,2.55190221,4623.5,4623.4,8.537]
[1755066938730,2.55190221,4623.5,4623.4,5.186]
[1755066938937,2.55190221,4623.5,4623.4,8.537]
[1755066939512,2.55265154,4623.5,4623.4,8.537]
[1755066940109,2.55265884,4623.5,4623.4,8.537]
[1755066940724,1.64845884,4623.5,4623.4,8.537]
[1755066941042,2.80504919,4623.5,4623.4,8.537]
[1755066941226,1.70270996,4623.5,4623.4,8.9994]
[1755066941424,0.93160194,4623.5,4623.4,9.4659]
[1755066941624,1.34923728,4623.5,4623.4,9.4659]
[1755066941800,0.56964833,4623.5,4623.4,9.4659]
[1755066942152,0.77029472,4623.5,4623.4,9.4659]
[1755066942560,0.56964833,4623.5,4623.4,9.4659]
[1755066943552,1.11964833,4623.5,4623.4,9.4659]
[1755066943752,0.108,4623.5,4623.4,9.4659]
[1755066944120,0.108,4623.5,4623.4,10.41249]
[1755066944434,0.108,4623.5,4623.4,9.4659]
[1755066944946,0.658,4623.5,4623.4,9.4659]
[1755066945340,0.108,4623.7,4623.4,9.4659]
[1755066945509,0.55,4623.6,4623.4,8.537]
[1755066945710,0.108,4623.7,4623.5,0.9289]
[1755066945910,0.108,4623.7,4623.6,3.349]
[1755066946110,0.108,4623.7,4623.6,4.2779]
[1755066946541,0.46365192,4625.1,4623.6,4.2779]
[1755066946708,0.108,4624.0,4623.6,3.349]
[1755066946913,0.108,4624.0,4623.7,0.9289]
[1755066947229,0.55,4623.9,4623.8,3.871449]
[1755066947428,0.55,4623.9,4623.8,4.800349]
[1755066948741,0.55,4623.9,4623.8,4.2779]
[1755066950444,0.55,4623.9,4623.4,5.6484]
[1755066950742,0.55,4623.6,4623.5,4.2769]
[1755066951642,0.55,4623.6,4623.5,3.348]
[1755066952740,0.55,4623.6,4623.4,5.186]
[1755066952945,0.55,4623.6,4623.5,3.348]
[1755066953146,0.70622,4623.6,4623.4,5.186]
[1755066953324,0.70622,4623.6,4623.5,3.348]
[1755066953918,0.55,4623.6,4623.5,3.348]
[1755066954362,1.4542,4623.6,4623.5,3.348]
[1755066954849,1.4542,4623.6,4623.5,3.347]
[1755066955217,1.4542,4623.6,4623.4,5.186]
[1755066955425,0.55,4623.6,4623.5,3.347]
[1755066956029,1.4542,4623.6,4623.5,3.347]
[1755066961154,0.658,4623.6,4623.5,3.347]
[1755066961723,1.5798,4623.6,4623.5,3.347]
[1755066962270,0.108,4623.6,4623.5,3.347]
[1755066962848,0.658,4623.6,4623.5,3.347]
[1755066966659,0.658,4623.6,4623.4,5.186]
[1755066966660,0.55,4623.5,4623.4,5.186]
[1755066966850,1.4718,4623.5,4623.4,8.532]
[1755066968151,1.4718,4623.5,4623.4,5.186]
[1755066968466,1.4718,4623.5,4623.4,8.532]
[1755066970165,1.4718,4623.5,4623.4,5.186]
[1755066970364,0.55,4623.2,4623.1,5.185]
[1755066970665,19.98246862,4623.2,4623.1,8.531]
[1755066970863,20.44557777,4623.2,4623.1,8.531]
[1755066971064,2.71309755,4623.0,4622.9,0.001]
[1755066971263,2.91410301,4623.0,4622.9,0.001]
[1755066971666,1.67280546,4623.0,4622.9,0.001]
[1755066971865,3.83590301,4623.0,4622.9,0.001]
[1755066972066,16.69659946,4622.7,4622.6,5.185]
[1755066972267,20.35274654,4622.7,4622.6,8.531]
[1755066972442,20.35274654,4622.7,4622.5,0.001]
[1755066972443,2.71328473,4622.6,4622.5,0.001]
[1755066972651,2.13577813,4622.6,4622.3,5.185]
[1755066972961,0.55,4622.4,4622.3,5.185]
[1755066973174,0.108,4622.4,4622.3,5.185]
[1755066973499,0.658,4622.4,4622.3,5.185]
[1755066973846,0.658,4622.4,4622.3,8.531]
[1755066974169,1.5798,4622.4,4622.3,8.531]
[1755066974461,1.5798,4622.4,4622.3,5.185]
[1755066974660,1.5798,4622.4,4622.3,8.541]
[1755066975240,1.68840539,4622.4,4622.3,5.185]
[1755066975439,0.55,4622.3,4622.2,5.186]
[1755066975648,1.4718,4622.3,4622.2,8.531]
[1755066976837,0.108,4622.4,4622.2,8.531]
[1755066977042,0.108,4622.3,4622.2,8.531]
[1755066977254,0.29129377,4622.3,4622.2,8.531]
[1755066978688,1.76309377,4622.3,4622.2,8.531]
[1755066979546,0.84129377,4622.3,4622.2,8.531]
[1755066979747,0.29129377,4622.3,4622.2,8.531]
[1755066979969,0.108,4622.3,4622.2,9.4493]
[1755066980691,0.108,4622.3,4622.2,8.9957]
[1755066981014,0.108,4622.3,4622.2,9.4493]
[1755066982155,0.108,4622.3,4622.2,5.476]
[1755066982345,0.108,4622.3,4622.2,8.821]
[1755066983068,0.108,4622.3,4622.2,9.2857]
[1755066983889,0.108,4622.3,4622.2,9.7393]
[1755066985492,0.108,4622.3,4622.2,5.476]
[1755066985698,0.108,4622.3,4622.2,8.821]
[1755066985699,0.658,4622.3,4622.2,8.821]
[1755066986286,0.78419148,4622.3,4622.2,8.821]
[1755066986500,0.658,4622.3,4622.2,8.821]
[1755066987003,1.5798,4622.3,4622.2,5.476]
[1755066987216,0.658,4622.3,4622.2,8.82]
[1755066988421,0.658,4622.3,4622.2,8.53]
[1755066989399,0.658,4622.3,4622.2,8.86]
[1755066989773,0.658,4622.3,4622.2,9.3303]
[1755066990587,0.658,4622.3,4622.2,8.86]
[1755066990794,0.108,4622.3,4622.2,9.8062]
[1755066993884,0.108,4622.3,4622.2,10.78692]
[1755066994717,0.11,4622.3,4622.2,10.78692]
[1755066995288,0.11,4622.3,4622.2,9.8062]
[1755066995589,0.66,4622.3,4622.2,9.8062]
[1755067000928,0.66,4622.3,4622.2,8.86]
[1755067015640,1.5918,4622.3,4622.2,8.86]
[1755067018411,0.552,4622.3,4622.2,8.86]
[1755067018608,0.66,4622.3,4622.2,8.86]
[1755067019050,0.66,4622.3,4622.2,8.53]
[1755067020320,1.67976,4622.3,4622.2,8.53]
[1755067021839,1.67976,4622.3,4622.2,5.186]
[1755067022039,1.67976,4622.3,4622.2,9.036]
[1755067022455,1.88186975,4622.3,4622.2,9.036]
[1755067022632,2.92666767,4622.3,4622.2,9.036]
[1755067022829,2.34772511,4622.3,4622.2,9.036]
[1755067023029,2.64994614,4622.3,4622.2,9.036]
[1755067023239,2.71347193,4622.2,4622.0,0.001]
[1755067023443,0.55,4622.0,4621.8,5.187]
[1755067023664,17.28080395,4621.9,4621.8,5.187]
[1755067023966,21.62694555,4621.9,4621.8,5.187]
[1755067024135,21.62694555,4621.9,4621.8,0.001]
[1755067024331,20.85583753,4621.9,4621.8,0.001]
[1755067024540,21.62694555,4621.9,4621.8,3.34]
[1755067024747,21.62694555,4621.9,4621.6,0.001]
[1755067024748,2.71370599,4621.7,4621.6,0.001]
[1755067024968,3.38146154,4621.7,4621.6,0.001]
[1755067025140,3.38146154,4621.7,4620.8,0.001]
[1755067025141,0.55,4621.2,4620.9,5.186]
[1755067025464,3.49673881,4621.2,4620.9,5.186]
[1755067025636,4.86989417,4621.2,4620.9,5.186]
[1755067025959,4.69921668,4621.2,4621.1,3.34]
[1755067026384,4.69921668,4621.2,4621.1,0.001]
[1755067026530,2.71403375,4621.0,4620.9,5.186]
[1755067026737,2.71403375,4621.0,4618.8,0.4484]
[1755067026738,2.71412742,4620.8,4620.3,5.186]
[1755067027071,19.65233315,4620.8,4620.3,5.186]
[1755067027360,20.74776991,4620.8,4620.3,5.186]
[1755067027561,2.7142011,4620.7,4620.3,5.186]
[1755067027871,0.658,4620.5,4620.3,5.186]
[1755067028074,0.658,4620.5,4620.4,3.341]
[1755067028367,1.76661751,4620.5,4620.4,3.341]
[1755067028769,1.5653,4620.5,4620.4,3.341]
[1755067028941,1.67459296,4620.5,4620.4,3.341]
[1755067029459,1.5653,4620.5,4620.4,3.341]
[1755067030389,0.658,4620.5,4620.4,3.341]
[1755067030743,0.108,4620.5,4620.4,3.341]
[1755067032142,1.5653,4620.5,4620.4,3.341]
[1755067033448,0.658,4620.5,4620.4,3.341]
[1755067035183,1.5653,4620.5,4620.4,3.341]
[1755067035351,0.658,4620.5,4620.4,3.341]
[1755067036784,0.658,4620.5,4620.4,3.7894]
[1755067036949,0.658,4620.5,4620.4,3.341]
[1755067038179,0.658,4620.5,4620.4,3.7894]
[1755067040769,0.658,4620.5,4620.4,3.341]
[1755067041963,0.658,4620.5,4620.4,3.7894]
[1755067042365,0.658,4620.5,4620.4,3.341]
[1755067042765,0.658,4620.5,4620.4,3.7894]
[1755067043283,0.658,4620.5,4620.4,4.2754]
[1755067043664,0.658,4620.5,4620.4,3.7894]
[1755067045081,0.658,4620.5,4620.4,3.341]
[1755067048294,0.658,4620.5,4620.4,0.001]
[1755067048459,1.5653,4620.5,4620.4,3.339]
[1755067048662,1.72183,4620.5,4620.4,3.339]
[1755067049664,0.81453,4620.5,4620.4,3.339]
[1755067050365,1.73033,4620.5,4620.4,3.339]
[1755067051298,1.93213086,4620.5,4620.4,3.339]
[1755067052096,0.55,4620.4,4620.3,5.187]
[1755067052410,4.59308259,4620.4,4620.3,8.524]
[1755067052763,20.78050212,4620.4,4620.3,8.524]
[1755067054464,18.61618735,4620.4,4620.3,8.524]
[1755067054889,1.07096782,4620.4,4620.3,8.524]
[1755067055095,2.05236782,4620.4,4620.3,8.524]
[1755067055296,2.53676782,4620.4,4620.3,8.524]
[1755067055500,2.53676782,4620.4,4620.3,5.187]
[1755067055699,3.31227987,4620.4,4620.3,8.524]
[1755067056964,2.53676782,4620.4,4620.3,8.524]
[1755067057770,2.33496696,4620.4,4620.3,8.524]
[1755067057969,2.53692462,4620.4,4620.3,8.524]
[1755067058570,2.53695397,4620.4,4620.3,8.524]
[1755067059695,2.10555397,4620.4,4620.3,8.524]
[1755067060404,2.88115981,4620.4,4620.3,8.524]
[1755067060603,2.39675981,4620.4,4620.3,8.524]
[1755067061504,1.65284536,4620.4,4620.3,8.524]
[1755067061675,1.35533319,4620.4,4620.3,8.9654]
[1755067061872,1.3236418,4620.4,4620.3,8.9654]
[1755067062306,0.7736418,4620.4,4620.3,8.9654]
[1755067062603,0.108,4620.4,4620.3,9.441]
[1755067063191,0.108,4620.4,4620.3,8.9654]
[1755067065397,0.108,4620.4,4620.3,9.441]
[1755067065595,0.658,4620.4,4620.3,9.441]
[1755067065903,0.658,4620.4,4620.3,8.523]
[1755067067919,0.658,4620.4,4620.3,5.187]
[1755067068215,17.76121953,4620.4,4620.3,8.523]
[1755067068414,1.60605479,4620.4,4620.3,8.523]
[1755067068617,0.658,4620.4,4620.3,8.523]
[1755067069922,0.658,4620.4,4620.3,8.9644]
[1755067070395,0.658,4620.4,4620.3,9.44]
[1755067073621,0.108,4620.4,4620.3,10.384]
[1755067074480,0.658,4620.4,4620.3,10.384]
[1755067080508,0.658,4620.4,4620.3,9.467]
[1755067080893,0.658,4620.4,4620.3,9.8975]
[1755067082427,0.658,4620.4,4620.3,10.3809]
[1755067082828,0.658,4620.4,4620.3,9.465]
[1755067082994,0.658,4620.4,4620.3,9.8975]
[1755067083528,0.658,4620.4,4620.3,10.3809]
[1755067084409,0.658,4620.4,4620.3,10.545]
[1755067084607,0.658,4620.4,4620.3,9.601]
[1755067085418,0.658,4620.4,4620.3,10.0335]
[1755067085901,0.658,4620.4,4620.3,10.5169]
[1755067086111,0.658,4620.4,4620.3,10.0335]
[1755067087228,0.658,4620.4,4620.3,9.601]
[1755067087434,0.658,4620.4,4620.3,10.5611]
[1755067088831,0.658,4620.4,4620.3,11.477]
[1755067090333,0.658,4620.4,4620.3,10.9936]
[1755067090842,0.658,4620.4,4620.3,10.5611]
[1755067091904,0.658,4620.4,4620.3,11.477]
[1755067092100,0.55,4620.4,4620.3,11.477]
[1755067092507,0.002,4620.7,4620.3,11.477]
[1755067092705,0.002,4620.7,4620.4,2.0636]
[1755067092921,0.002,4620.7,4620.5,3.332]
[1755067093230,0.002,4620.7,4620.5,4.2479]
[1755067093448,0.002,4620.7,4620.5,3.332]
[1755067093736,0.002,4620.7,4620.6,0.9159]
[1755067093941,0.002,4620.7,4620.6,2.01796]
[1755067094245,0.002,4620.7,4620.6,3.331]
[1755067094399,0.11,4620.7,4620.5,0.33]
[1755067094604,0.11,4620.7,4620.6,3.331]
[1755067094804,0.66,4620.7,4620.6,3.661]
[1755067095337,1.5693,4620.7,4620.6,3.661]
[1755067095956,1.72643,4620.7,4620.6,0.33]
[1755067096117,1.72643,4620.7,4620.6,3.661]
[1755067096720,1.92807332,4620.7,4620.6,3.661]
[1755067097214,1.9280768,4620.7,4620.6,3.661]
[1755067097443,2.23029783,4620.7,4620.6,3.661]
[1755067097945,2.81103875,4620.7,4620.6,3.661]
[1755067098139,2.69489057,4620.7,4620.6,3.661]
[1755067098912,2.69489057,4620.7,4620.6,3.331]
[1755067099118,2.23029783,4620.7,4620.6,3.331]
[1755067099340,2.69489057,4620.7,4620.6,3.331]
[1755067099537,2.39266954,4620.7,4620.6,3.331]
[1755067101171,3.47049641,4620.7,4620.6,3.331]
[1755067101457,2.69489057,4620.7,4620.6,3.331]
[1755067101626,1.9280768,4620.7,4620.6,3.331]
[1755067103046,1.9280768,4620.7,4620.3,5.187]
[1755067103047,0.55688395,4620.6,4620.3,5.187]
[1755067103349,0.108,4620.4,4620.3,5.187]
[1755067103548,1.0173,4620.4,4620.3,5.187]
[1755067103723,1.5673,4620.4,4620.3,5.187]
[1755067104347,2.07095958,4620.4,4620.3,8.518]
[1755067104659,2.07095787,4620.4,4620.3,8.518]
[1755067104855,0.55,4620.1,4619.9,0.001]
[1755067105068,16.73741953,4620.0,4619.9,1.061]
[1755067105223,17.51144911,4620.0,4619.9,3.331]
[1755067105423,18.42074911,4620.0,4619.9,3.331]
[1755067106428,17.51144911,4620.0,4619.9,3.331]
[1755067106654,0.108,4620.0,4619.9,3.331]
[1755067107519,1.5673,4620.0,4619.9,4.391]
[1755067107922,1.1228,4620.0,4619.9,4.391]
[1755067108124,0.47350479,4620.0,4619.9,4.391]
[1755067108763,0.108,4620.0,4619.9,4.391]
[1755067109124,0.108,4620.0,4619.9,1.48661388]
[1755067109428,0.108,4620.0,4619.9,1.05411388]
[1755067110141,1.5397,4620.0,4619.9,1.05411388]
[1755067110444,1.5397,4620.0,4619.9,4.38411388]
[1755067111958,1.5397,4620.0,4619.9,3.33]
[1755067112761,0.658,4620.0,4619.9,3.33]
[1755067113166,1.0867,4620.0,4619.9,3.33]
[1755067113462,1.5397,4620.0,4619.9,3.33]
[1755067113637,0.55,4619.9,4619.8,5.189]
[1755067113829,1.4317,4619.9,4619.8,8.519]
[1755067115446,1.4317,4619.9,4619.8,5.189]
[1755067115643,1.4317,4619.9,4619.8,8.519]
[1755067116355,1.4317,4619.9,4619.6,0.001]
[1755067116655,0.55,4619.7,4619.6,0.001]
[1755067117037,1.4317,4619.7,4619.6,0.001]
[1755067117242,1.5397,4619.7,4619.6,0.001]
[1755067117426,1.5397,4619.7,4619.6,3.331]
[1755067118439,0.658,4619.7,4619.6,3.331]
[1755067118642,0.8210546,4619.7,4619.6,3.331]
[1755067121775,37.10439016,4619.7,4619.4,0.001]
[1755067121932,0.55,4619.5,4619.4,0.891]
[1755067122330,1.4317,4619.5,4619.4,0.891]
[1755067122541,1.69141318,4619.5,4619.4,0.891]
[1755067122947,1.69141318,4619.5,4619.4,4.22]
[1755067123975,1.69141318,4619.5,4619.4,3.33]
[1755067124463,2.19508942,4619.5,4619.4,0.001]
[1755067124667,2.19508942,4619.5,4619.0,5.191]
[1755067124962,2.05817981,4619.4,4619.0,5.191]
[1755067125374,2.63764034,4619.4,4619.0,5.191]
[1755067126164,2.63764034,4619.4,4619.3,3.33]
[1755067126470,1.75594034,4619.4,4619.3,3.33]
[1755067126657,1.17647981,4619.4,4619.3,3.33]
[1755067126859,0.30945521,4619.4,4619.3,3.33]
[1755067127037,0.108,4619.4,4619.3,3.33]
[1755067127432,0.108,4619.4,4619.3,0.001]
[1755067127652,0.108,4619.4,4619.3,3.33]
[1755067128684,0.108,4619.4,4619.3,0.001]
[1755067128844,1.78937403,4619.4,4619.3,3.33]
[1755067129048,1.9909727,4619.4,4619.3,3.33]
[1755067129246,1.1092727,4619.4,4619.3,3.33]
[1755067129464,0.90767403,4619.4,4619.3,3.33]
[1755067129664,0.90767403,4619.4,4619.3,0.001]
[1755067129966,0.90767403,4619.4,4619.3,8.52]
[1755067132270,0.90767403,4619.4,4619.3,0.001]
[1755067132470,0.90767403,4619.4,4619.3,8.364]
[1755067133261,0.658,4619.4,4619.3,8.364]
[1755067134375,0.658,4619.4,4619.3,8.8159]
[1755067134740,0.658,4619.4,4619.3,8.364]
[1755067135765,0.658,4619.4,4619.3,8.8159]
[1755067137659,0.658,4619.4,4619.3,9.2924]
[1755067138274,0.658,4619.4,4619.3,8.8159]
[1755067141164,0.658,4619.4,4619.3,8.364]
[1755067143159,0.658,4619.4,4619.3,8.816]
[1755067143384,0.658,4619.4,4619.3,9.2921]
[1755067144463,0.658,4619.4,4619.3,8.816]
[1755067144663,0.658,4619.4,4619.3,10.1739]
[1755067144891,0.108,4619.4,4619.3,9.6978]
[1755067145077,0.108,4619.4,4619.3,10.1739]
[1755067145577,0.658,4619.4,4619.3,10.1739]
[1755067145763,0.108,4619.4,4619.3,10.1739]
[1755067147474,0.11,4619.4,4619.3,10.1739]
[1755067147788,0.002,4619.4,4619.3,10.2819]
[1755067152565,0.002,4619.4,4619.3,6.1808]
[1755067152766,0.002,4619.4,4619.3,10.4339]
[1755067153681,0.002,4619.4,4619.3,9.9578]
[1755067153897,0.002,4619.4,4619.3,9.5058]
[1755067154101,0.002,4619.4,4619.3,9.9578]
[1755067154406,0.002,4619.4,4619.3,9.3978]
[1755067155478,0.002,4619.4,4619.3,9.8498]
[1755067155671,0.002,4619.4,4619.3,9.3978]
[1755067157664,0.002,4619.4,4619.3,9.8498]
[1755067157861,0.002,4619.4,4619.3,9.3978]
[1755067159389,0.002,4619.4,4619.3,8.516]
[1755067160885,1.4654,4619.4,4619.3,5.191]
[1755067161222,1.4654,4619.4,4619.3,8.515]
[1755067161570,0.552,4619.4,4619.3,8.515]
[1755067162094,1.4654,4619.4,4619.3,5.191]
[1755067162294,1.4654,4619.4,4619.3,8.515]
[1755067164705,1.4654,4619.4,4619.3,5.191]
[1755067164993,1.4654,4619.4,4619.3,8.515]
[1755067165196,1.4654,4619.4,4619.3,5.191]
[1755067165403,1.4654,4619.4,4619.3,8.515]
[1755067165600,1.4654,4619.4,4619.3,5.191]
[1755067165772,1.62274,4619.4,4619.3,5.191]
[1755067165969,1.62274,4619.4,4619.3,8.515]
[1755067167701,1.62274,4619.4,4619.3,5.191]
[1755067167904,1.62274,4619.4,4619.3,8.515]
[1755067168478,1.62274,4619.4,4619.3,5.191]
[1755067168881,1.62274,4619.4,4619.3,8.515]
[1755067171002,1.62274,4619.4,4619.3,8.514]
[1755067171208,1.78620122,4619.4,4619.3,8.514]
[1755067171587,0.55,4619.3,4619.0,5.19]
[1755067171784,1.0448,4619.3,4619.2,3.324]
[1755067171985,1.5803,4619.3,4619.2,3.324]
[1755067175900,8.7503,4619.3,4619.2,0.001]
[1755067176101,9.21421956,4619.3,4619.2,3.324]
[1755067176420,8.7503,4619.3,4619.2,3.324]
[1755067176816,8.7503,4619.3,4619.0,5.19]
[1755067177000,1.4723,4619.2,4619.1,3.323]
[1755067177418,1.4723,4619.2,4619.0,5.19]
[1755067177617,1.4723,4619.1,4619.0,5.19]
[1755067177821,1.4723,4619.1,4619.0,8.513]
[1755067178392,1.4723,4619.1,4618.9,0.001]
[1755067178588,1.5803,4619.0,4618.9,0.001]
[1755067180124,1.5803,4619.0,4618.9,3.324]
[1755067182495,2.8763,4619.0,4618.9,3.324]
[1755067183798,5.04127077,4619.0,4618.9,0.001]
[1755067183997,0.55,4618.9,4618.6,5.191]
[1755067184199,1.4723,4618.8,4618.7,3.323]
[1755067184629,1.5803,4618.8,4618.7,3.323]
[1755067185419,12.21136451,4618.8,4618.7,3.323]
[1755067185728,0.55,4618.5,4618.3,0.001]
[1755067186032,7.828,4618.4,4618.3,0.001]
[1755067186232,0.55,4618.3,4618.1,5.19]
[1755067186430,1.01263912,4618.3,4618.1,5.19]
[1755067186634,8.6423,4618.2,4618.1,5.19]
[1755067186803,8.6423,4618.2,4618.1,8.513]
[1755067187904,7.72,4618.2,4618.1,8.513]
[1755067188800,7.72,4618.2,4618.1,8.958]
[1755067190024,7.72,4618.2,4618.1,8.513]
[1755067190920,7.72,4618.2,4618.1,5.19]
[1755067191126,8.18377579,4618.2,4618.1,8.513]
[1755067191915,9.10607579,4618.2,4618.1,8.513]
[1755067192747,11.47275843,4618.2,4618.1,8.513]
[1755067192944,11.47275537,4618.2,4618.1,8.513]
[1755067193236,11.47275537,4618.2,4617.6,5.191]
[1755067193237,2.71558026,4617.7,4617.6,5.191]
[1755067193403,1.67363378,4617.7,4617.6,8.514]
[1755067193756,1.35413378,4617.7,4617.6,8.514]
[1755067194048,1.5803,4617.7,4617.6,8.514]
[1755067194204,1.78163378,4617.7,4617.6,8.515]
[1755067194613,17.98571687,4617.7,4617.6,8.515]
[1755067194841,17.52719266,4617.7,4617.6,8.515]
[1755067195314,20.61507292,4617.7,4617.6,0.001]
[1755067195514,2.71590859,4617.0,4616.9,6.352]
[1755067195752,0.55,4616.9,4616.3,5.192]
[1755067195906,16.75408309,4616.4,4616.3,5.192]
[1755067196242,16.86208309,4616.4,4616.3,8.515]
[1755067196603,0.658,4616.4,4616.3,8.515]
[1755067197608,0.8219569,4616.4,4616.3,8.515]
[1755067200586,1.0231342,4616.4,4616.3,8.514]
[1755067200877,1.0231342,4616.4,4616.1,5.192]
[1755067200878,0.55,4616.3,4616.1,5.192]
[1755067201085,1.67525645,4616.3,4616.1,5.192]
[1755067201385,1.78325645,4616.2,4616.1,5.192]
[1755067201746,0.85915645,4616.2,4616.1,5.192]
[1755067201948,0.658,4616.2,4616.1,5.192]
[1755067202157,0.94636156,4616.2,4616.1,8.515]
[1755067202443,0.94636156,4616.2,4616.1,8.983]
[1755067202641,0.94636156,4616.2,4616.1,8.515]
[1755067203147,0.94636156,4616.2,4616.1,8.983]
[1755067203362,0.658,4616.2,4616.1,9.4448]
[1755067204649,0.658,4616.2,4616.1,8.983]
[1755067204852,0.108,4616.2,4616.1,9.4448]
[1755067205347,0.108,4616.2,4616.1,9.7748]
[1755067207655,0.658,4616.2,4616.1,9.7748]
[1755067208969,0.658,4616.2,4616.1,10.75228]
[1755067210796,0.658,4616.2,4616.1,9.7748]
[1755067211400,0.658,4616.2,4616.1,8.845]
[1755067213195,0.658,4616.2,4616.1,9.313]
[1755067213704,0.658,4616.2,4616.1,9.7748]
[1755067214241,0.108,4616.2,4616.1,9.7748]
[1755067214542,0.108,4616.3,4616.1,10.75228]
[1755067214743,0.2012147,4617.8,4616.2,0.9298]
[1755067214899,0.108,4616.5,4616.3,4.2518]
[1755067215094,0.108,4616.5,4616.4,1.075228]
[1755067215348,0.108,4616.5,4616.4,2.005028]
[1755067216043,0.108,4616.5,4616.4,2.335028]
[1755067217934,0.55,4616.6,4616.4,2.335028]
[1755067218242,0.55,4616.6,4616.5,4.2508]
[1755067218404,0.55,4616.6,4616.5,4.8364028]
[1755067221601,0.002,4616.9,4616.5,4.8364028]
[1755067221800,0.002,4616.9,4616.5,3.9066028]
[1755067222103,0.002,4616.9,4616.6,0.9298]
[1755067222419,0.002,4616.9,4616.7,3.321]
[1755067222627,0.002,4616.9,4616.8,0.48364028]
[1755067223027,0.002,4616.9,4616.8,1.41344028]
[1755067224103,0.002,4616.9,4616.8,4.2498]